bitfinex/quotes_BTCUSD_20260308
["timestamp","ask_amount","ask_price","bid_price","bid_amount"]
[1772973127283,0.0004,67425.0,67408.0,0.0184308]
[1772973127963,0.07915058,67431.0,67408.0,0.0184308]
[1772973127964,0.07914253,67438.0,67408.0,0.0184308]
[1772973128119,0.01882452,67442.0,67417.0,0.17776557]
[1772973128120,0.005,67442.0,67417.0,0.17776557]
[1772973128321,0.01882452,67439.0,67418.0,0.00148]
[1772973128527,0.005,67436.0,67418.0,0.00148]
[1772973128737,0.07413631,67444.0,67413.0,0.17776557]
[1772973128738,0.01882452,67435.0,67413.0,0.17776557]
[1772973128941,0.01882452,67435.0,67405.0,0.20641847]
[1772973128942,0.01882452,67430.0,67405.0,0.13224]
[1772973129147,0.07415537,67426.0,67406.0,0.00148]
[1772973129329,0.01882452,67423.0,67406.0,0.00169829]
[1772973129697,0.07415537,67428.0,67406.0,0.00169829]
[1772973129698,0.09297989,67428.0,67406.0,0.00021829]
[1772973129902,0.07415537,67428.0,67407.0,0.0199108]
[1772973130280,0.07915537,67428.0,67407.0,0.0199108]
[1772973130502,0.005,67427.0,67407.0,0.02023049]
[1772973130697,0.07415537,67428.0,67407.0,0.02023049]
[1772973131324,0.07415267,67429.0,67407.0,0.02023049]
[1772973131325,0.005,67429.0,67409.0,0.0184308]
[1772973131882,0.005,67427.0,67408.0,0.07417517]
[1772973132107,0.01882452,67424.0,67408.0,0.07417517]
[1772973132281,0.005,67421.0,67408.0,0.07417517]
[1772973132480,0.005,67421.0,67408.0,0.07449486]
[1772973132705,0.005,67420.0,67408.0,0.07449486]
[1772973133022,0.005,67420.0,67409.0,0.00148]
[1772973133182,0.005,67418.0,67408.0,0.00031969]
[1772973133385,0.005,67417.0,67408.0,0.00031969]
[1772973133591,0.005,67417.0,67409.0,0.00148]
[1772973133992,0.005,67417.0,67408.0,0.00031969]
[1772973134193,0.005,67415.0,67405.0,0.13224]
[1772973134402,0.005,67413.0,67406.0,0.00148]
[1772973134606,0.005,67413.0,67407.0,0.00148]
[1772973135222,0.07417077,67412.0,67408.0,0.00148]
[1772973135425,0.005,67411.0,67408.0,0.00148]
[1772973136029,0.07417077,67412.0,67408.0,0.00148]
[1772973136252,0.07917077,67412.0,67408.0,0.00148]
[1772973136456,0.07917077,67412.0,67399.0,0.07418435]
[1772973136457,0.005,67411.0,67392.0,0.07419263]
[1772973136659,0.005,67407.0,67389.0,0.0002]
[1772973136853,0.00148,67410.0,67391.0,0.0018124]
[1772973136854,0.01882452,67404.0,67391.0,0.0018124]
[1772973137051,0.00148,67410.0,67391.0,0.0003324]
[1772973137052,0.005,67402.0,67391.0,0.0003324]
[1772973137255,0.005,67400.0,67392.0,0.00148]
[1772973137830,0.005,67400.0,67389.0,0.0002]
[1772973138024,0.01882452,67398.0,67389.0,0.00168]
[1772973138355,0.00011891,67400.0,67385.0,0.0002]
[1772973138356,0.005,67395.0,67387.0,0.00148]
[1772973138556,0.005,67394.0,67378.0,0.0002]
[1772973138762,0.005,67393.0,67384.0,0.00148]
[1772973138975,0.005,67390.0,67379.0,0.00148]
[1772973139316,0.07419938,67386.0,67379.0,0.00148]
[1772973139476,0.005,67385.0,67379.0,0.00148]
[1772973141164,0.005,67385.0,67380.0,0.0002]
[1772973141589,0.005,67383.0,67380.0,0.0002]
[1772973142155,0.005,67383.0,67379.0,0.00148]
[1772973142356,0.005,67383.0,67378.0,0.00148]
[1772973142761,0.03676207,67417.0,67378.0,0.00148]
[1772973142983,0.001,67383.0,67378.0,0.00148]
[1772973143193,0.005,67388.0,67378.0,0.00148]
[1772973144243,0.07419828,67387.0,67378.0,0.00148]
[1772973144467,0.07418297,67401.0,67379.0,0.0184308]
[1772973144871,0.07418195,67402.0,67379.0,0.0184308]
[1772973145102,0.07418086,67403.0,67379.0,0.0184308]
[1772973145303,0.07918034,67404.0,67379.0,0.0184308]
[1772973145435,0.005,67399.0,67379.0,0.0184308]
[1772973145639,0.00011891,67400.0,67379.0,0.0184308]
[1772973146036,0.07430369,67400.0,67379.0,0.0184308]
[1772973146237,0.00011891,67400.0,67381.0,0.0184308]
[1772973146438,0.00011891,67400.0,67383.0,0.0184308]
[1772973147418,0.005,67399.0,67382.0,0.00148]
[1772973147551,0.005,67399.0,67383.0,0.0184308]
[1772973148802,0.07418617,67398.0,67384.0,0.07420159]
[1772973149004,0.005,67398.0,67384.0,0.07420159]
[1772973150219,0.005,67398.0,67384.0,0.09263239]
[1772973151023,0.01882452,67395.0,67392.0,0.00015]
[1772973151199,0.005,67395.0,67389.0,0.00148]
[1772973151622,0.005,67395.0,67383.0,0.07420159]
[1772973151905,0.005,67395.0,67388.0,0.00148]
[1772973152110,0.005,67395.0,67383.0,0.07420159]
[1772973152319,0.005,67395.0,67384.0,0.00148]
[1772973152721,0.005,67395.0,67385.0,0.00148]
[1772973152913,0.07919034,67395.0,67386.0,0.07419938]
[1772973153675,0.07919034,67395.0,67387.0,0.00148]
[1772973153876,0.005,67395.0,67387.0,0.00148]
[1772973154105,0.005,67395.0,67386.0,0.07419938]
[1772973154306,0.07918949,67395.0,67387.0,0.00148]
[1772973154479,0.005,67395.0,67387.0,0.00148]
[1772973155403,0.005,67395.0,67386.0,0.07419938]
[1772973155404,0.005,67398.0,67383.0,0.07420203]
[1772973155606,0.00022001,67395.0,67384.0,0.00148]
[1772973157421,0.00022001,67395.0,67385.0,0.07420048]
[1772973158186,0.00011891,67400.0,67386.0,0.01846737]
[1772973159028,0.07430339,67400.0,67386.0,0.01846737]
[1772973159464,0.07430339,67400.0,67387.0,0.07419828]
[1772973159673,0.00011891,67400.0,67387.0,0.07419828]
[1772973160032,0.00148,67412.0,67387.0,0.07419828]
[1772973160356,0.00148,67412.0,67393.0,0.01846737]
[1772973160357,0.07417103,67412.0,67393.0,0.01846737]
[1772973160538,0.07417103,67412.0,67395.0,0.01846737]
[1772973160946,0.07439413,67409.0,67394.0,0.00148]
[1772973161154,0.00148,67408.0,67387.0,0.00011891]
[1772973161338,0.005,67405.0,67387.0,0.00011891]
[1772973161540,0.005,67401.0,67387.0,0.00159891]
[1772973161788,0.01918053,67401.0,67387.0,0.00159891]
[1772973162541,0.00148,67400.0,67388.0,0.00621107]
[1772973164198,0.07418507,67399.0,67388.0,0.08040772]
[1772973164399,0.07418507,67399.0,67387.0,0.00159891]
[1772973164559,0.01918053,67398.0,67381.0,0.00148]
[1772973164766,0.01929946,67398.0,67381.0,0.00148]
[1772973164991,0.00148,67397.0,67386.0,0.0002]
[1772973165225,0.01918053,67396.0,67386.0,0.0002]
[1772973165430,0.01918053,67396.0,67381.0,0.00148]
[1772973166120,0.07418947,67395.0,67381.0,0.00148]
[1772973166327,0.01918053,67394.0,67381.0,0.00148]
[1772973166922,0.01918053,67394.0,67381.0,0.00769107]
[1772973167715,0.01918053,67394.0,67382.0,0.07420379]
[1772973167895,0.01918053,67394.0,67381.0,0.00769107]
[1772973168221,0.07419168,67393.0,67382.0,0.00621107]
[1772973170340,0.07419168,67393.0,67382.0,0.08041435]
[1772973170910,0.07419168,67393.0,67383.0,0.00621107]
[1772973171613,0.07419168,67393.0,67381.0,0.00148]
[1772973171806,0.01918053,67392.0,67381.0,0.00148]
[1772973172057,0.01918053,67392.0,67381.0,0.07568477]
[1772973172287,0.07419388,67391.0,67381.0,0.0756847]
[1772973172455,0.07419388,67391.0,67382.0,0.0002]
[1772973176463,0.07419388,67391.0,67382.0,0.00641107]
[1772973177635,0.07419388,67391.0,67382.0,0.0002]
[1772973177791,0.09337441,67391.0,67382.0,0.0002]
[1772973177992,0.01918053,67390.0,67382.0,0.0002]
[1772973178197,0.07419388,67391.0,67382.0,0.0002]
[1772973178610,0.09337441,67391.0,67382.0,0.0002]
[1772973180331,0.07419388,67391.0,67382.0,0.0002]
[1772973180732,0.07419388,67391.0,67377.0,0.07420876]
[1772973180733,0.01918053,67390.0,67370.0,0.00153]
[1772973180900,2.553165,67389.0,67350.0,0.30694164]
[1772973181106,2.553165,67389.0,67329.0,0.02467844]
[1772973181107,0.01918053,67373.0,67329.0,0.02467844]
[1772973181409,2.959125,67369.0,67329.0,0.00769107]
[1772973181594,0.01918053,67358.0,67333.0,0.07425763]
[1772973181937,0.11804147,67370.0,67335.0,0.07606736]
[1772973182233,0.09014314,67374.0,67335.0,0.07606736]
[1772973182234,0.01918053,67371.0,67339.0,0.01846737]
[1772973182401,0.01918053,67371.0,67341.0,0.01846737]
[1772973182579,0.07421701,67370.0,67345.0,0.07424456]
[1772973182780,0.0756958,67372.0,67345.0,0.07424456]
[1772973182781,0.00148,67372.0,67348.0,0.01971669]
[1772973183038,0.00148,67372.0,67346.0,0.00148]
[1772973183039,0.00148,67371.0,67351.0,0.00621107]
[1772973183205,0.00148,67371.0,67353.0,0.00621107]
[1772973183389,0.01927303,67373.0,67354.0,0.00769107]
[1772973183594,0.00148,67370.0,67354.0,0.00769107]
[1772973184425,0.00148,67371.0,67354.0,0.00769107]
[1772973184630,0.07421701,67370.0,67355.0,0.07423353]
[1772973186693,0.07421921,67368.0,67355.0,0.07423353]
[1772973187460,0.01863453,67369.0,67355.0,0.07423353]
[1772973188345,0.01863453,67369.0,67355.0,0.06419168]
[1772973188543,0.07569619,67371.0,67355.0,0.06339443]
[1772973188744,0.01397039,67388.0,67356.0,0.02480511]
[1772973188951,0.01397039,67388.0,67358.0,0.005]
[1772973189177,0.01397039,67388.0,67362.0,0.005]
[1772973189353,0.01397039,67388.0,67365.0,0.01948101]
[1772973189555,0.01397039,67388.0,67356.0,0.02480511]
[1772973189556,0.01397039,67388.0,67369.0,0.005]
[1772973189753,0.01397039,67388.0,67372.0,0.005]
[1772973190026,0.01397039,67388.0,67373.0,0.00148]
[1772973190160,0.01863453,67387.0,67374.0,0.00148]
[1772973190361,0.00022001,67384.0,67374.0,0.00148]
[1772973190764,0.00022001,67384.0,67374.0,0.0742126]
[1772973190765,0.07442177,67384.0,67374.0,0.0742126]
[1772973190969,0.07442177,67384.0,67373.0,0.00039664]
[1772973191169,0.01863453,67383.0,67368.0,0.00148]
[1772973191373,0.01903117,67383.0,67368.0,0.00148]
[1772973193812,0.07607975,67383.0,67371.0,0.02448101]
[1772973193990,0.07607975,67383.0,67371.0,0.005]
[1772973194195,0.07607975,67383.0,67369.0,0.07421811]
[1772973196616,0.07607975,67383.0,67367.0,0.07422031]
[1772973196824,0.09471428,67383.0,67367.0,0.07570031]
[1772973197047,0.01863453,67382.0,67367.0,0.07570031]
[1772973198658,0.07420489,67381.0,67367.0,0.00148]
[1772973198825,0.09283942,67381.0,67367.0,0.07570008]
[1772973199762,0.07420489,67381.0,67367.0,0.07570008]
[1772973200965,0.14717281,67380.0,67367.0,0.07570008]
[1772973201178,0.14717281,67379.0,67367.0,0.07570008]
[1772973201338,0.14717281,67378.0,67367.0,0.07570008]
[1772973201539,0.14717281,67377.0,67367.0,0.07570008]
[1772973201735,0.14717281,67379.0,67367.0,0.07570008]
[1772973201979,0.14717281,67378.0,67367.0,0.07570008]
[1772973202177,0.14717281,67377.0,67367.0,0.07570008]
[1772973202358,0.14717281,67379.0,67367.0,0.07570008]
[1772973202594,0.14717281,67378.0,67367.0,0.07570006]
[1772973202802,0.14717281,67377.0,67367.0,0.07570006]
[1772973203088,0.22138321,67376.0,67367.0,0.07570006]
[1772973203713,0.00061665,67383.0,67367.0,0.07570006]
[1772973204038,0.07481937,67383.0,67368.0,0.02448101]
[1772973204198,0.07481937,67383.0,67368.0,0.01948101]
[1772973204384,0.07481937,67383.0,67370.0,0.005]
[1772973204807,0.07481937,67383.0,67370.0,0.01948101]
[1772973205010,0.07481937,67383.0,67372.0,0.0742148]
[1772973205213,0.07481937,67383.0,67373.0,0.00148]
[1772973205798,0.07481937,67383.0,67374.0,0.005]
[1772973206358,0.07481937,67383.0,67373.0,0.00148]
[1772973207936,0.07481937,67383.0,67374.0,0.0742126]
[1772973210371,0.07481937,67383.0,67373.0,0.07569323]
[1772973210372,0.07481937,67383.0,67373.0,0.00148]
[1772973210595,0.07481937,67383.0,67367.0,0.07422017]
[1772973210731,0.07481937,67383.0,67371.0,0.00148]
[1772973211940,0.07629937,67383.0,67371.0,0.00148]
[1772973212354,0.07481937,67383.0,67372.0,0.0742148]
[1772973212560,0.07481937,67383.0,67373.0,0.01962525]
[1772973212777,0.07481937,67383.0,67374.0,0.005]
[1772973214642,0.07481937,67383.0,67375.0,0.0742115]
[1772973215734,0.14770151,67382.0,67376.0,0.005]
[1772973216037,0.14770151,67381.0,67376.0,0.005]
[1772973216304,0.14770151,67380.0,67374.0,0.074212]
[1772973216609,0.14770151,67379.0,67374.0,0.074212]
[1772973216756,0.14770151,67378.0,67374.0,0.079212]
[1772973216959,0.14770151,67377.0,67374.0,0.079212]
[1772973217159,0.14774022,67376.0,67374.0,0.079212]
[1772973217483,0.14779613,67378.0,67375.0,0.005]
[1772973217804,0.07420716,67379.0,67375.0,0.005]
[1772973217805,0.14779613,67377.0,67375.0,0.005]
[1772973218016,0.14779613,67376.0,67357.0,0.005]
[1772973218159,0.01843156,67377.0,67357.0,0.005]
[1772973218160,0.14779613,67375.0,67361.0,0.00148]
[1772973218365,0.14779613,67374.0,67365.0,0.005]
[1772973218603,0.12779613,67373.0,67362.0,0.005]
[1772973218783,0.01843156,67377.0,67361.0,0.00148]
[1772973219182,0.01843156,67377.0,67362.0,0.00148]
[1772973219579,0.01843156,67377.0,67360.0,0.0002]
[1772973219782,0.01843156,67377.0,67336.0,0.1487]
[1772973219783,1.638673,67367.0,67349.0,1e-08]
[1772973220011,0.01843156,67363.0,67333.0,0.0742568]
[1772973220317,0.541896,67358.0,67335.0,0.005]
[1772973220516,0.39137256,67356.0,67335.0,0.01962525]
[1772973220669,0.00148,67360.0,67338.0,0.005]
[1772973220872,0.427935,67355.0,67334.0,0.00148]
[1772973221081,0.00148,67359.0,67328.0,0.07458531]
[1772973221082,0.01843156,67352.0,67332.0,0.00148]
[1772973221324,0.8773956,67353.0,67333.0,0.001]
[1772973221325,0.01843156,67349.0,67333.0,0.001]
[1772973221549,0.01843156,67349.0,67325.0,0.0004]
[1772973221550,0.01843156,67346.0,67325.0,1e-08]
[1772973221708,0.01843156,67342.0,67325.0,1e-08]
[1772973222059,0.01843156,67342.0,67310.0,0.0742825]
[1772973222060,0.644518,67336.0,67307.0,0.07428559]
[1772973222189,0.1771336,67336.0,67312.0,0.01962525]
[1772973222395,0.224325,67334.0,67315.0,0.005]
[1772973222633,0.01843156,67333.0,67315.0,0.005]
[1772973222787,0.01843156,67331.0,67315.0,0.005]
[1772973222987,0.01843156,67331.0,67311.0,0.00148]
[1772973223188,0.01843156,67327.0,67308.0,0.0003483]
[1772973223396,0.00148,67331.0,67313.0,0.005]
[1772973223596,0.00148,67331.0,67316.0,0.01962525]
[1772973223853,0.00148,67331.0,67318.0,0.005]
[1772973224140,0.0742611,67330.0,67316.0,0.00148]
[1772973224338,0.0742611,67330.0,67308.0,0.01997355]
[1772973224339,0.01843156,67329.0,67308.0,0.01997355]
[1772973224544,0.01855039,67329.0,67311.0,0.00148]
[1772973224851,0.01855039,67329.0,67303.0,0.00148]
[1772973224852,0.01843156,67327.0,67303.0,0.00148]
[1772973225465,0.01843156,67327.0,67300.0,0.0062]
[1772973225631,0.00011883,67329.0,67302.0,0.01962525]
[1772973225632,0.00148,67326.0,67302.0,0.01962525]
[1772973225835,0.01843156,67325.0,67305.0,0.005]
[1772973226239,0.07426772,67324.0,67306.0,0.01962525]
[1772973226415,0.00148,67323.0,67308.0,0.005]
[1772973226827,0.00148,67323.0,67304.0,0.005]
[1772973227440,0.00148,67323.0,67305.0,0.005]
[1772973227831,0.00148,67323.0,67306.0,0.005]
[1772973228277,0.07426992,67322.0,67306.0,0.005]
[1772973229317,0.07426992,67322.0,67306.0,0.01962525]
[1772973229493,0.07426992,67322.0,67307.0,0.005]
[1772973231379,0.07426992,67322.0,67308.0,0.005]
[1772973231747,0.07426992,67322.0,67306.0,0.0002]
[1772973233187,0.00148,67321.0,67307.0,0.005]
[1772973233362,0.00148,67321.0,67308.0,0.005]
[1772973233767,0.00148,67321.0,67306.0,0.0002]
[1772973233971,0.01991156,67321.0,67300.0,0.0062]
[1772973234178,0.00148,67320.0,67305.0,0.005]
[1772973234376,0.00148,67320.0,67301.0,0.00148]
[1772973234681,0.07426772,67324.0,67307.0,0.01962525]
[1772973234682,0.00148,67324.0,67307.0,0.01962525]
[1772973234881,0.00148,67323.0,67308.0,0.00148]
[1772973235329,0.01843156,67328.0,67308.0,0.00148]
[1772973235628,0.00148,67323.0,67308.0,0.00148]
[1772973235827,0.01843156,67324.0,67307.0,0.005]
[1772973236029,0.00148,67323.0,67309.0,0.01962525]
[1772973236231,0.00148,67323.0,67310.0,0.005]
[1772973236384,0.07425841,67333.0,67311.0,0.01962525]
[1772973236588,0.07425841,67333.0,67306.0,0.00148]
[1772973236589,0.00148,67328.0,67314.0,0.005]
[1772973236787,0.07426441,67327.0,67315.0,0.005]
[1772973237008,0.07426441,67327.0,67315.0,0.00483135]
[1772973238734,0.07426441,67327.0,67313.0,0.00148]
[1772973239536,0.01843156,67326.0,67305.0,0.07428838]
[1772973239735,0.01843156,67326.0,67306.0,0.00148]
[1772973240123,0.01843156,67326.0,67301.0,0.07429281]
[1772973240124,0.00575,67322.0,67300.0,0.00148]
[1772973240372,0.546642,67318.0,67300.0,0.00148]
[1772973240581,0.36820656,67316.0,67300.0,0.00148]
[1772973240795,0.00575,67322.0,67300.0,0.00148]
[1772973240796,0.09271031,67314.0,67300.0,0.00148]
[1772973241086,0.07427875,67314.0,67301.0,0.005]
[1772973241286,0.07427875,67314.0,67300.0,0.00148]
[1772973241287,0.07427875,67314.0,67302.0,0.01962525]
[1772973241499,0.07427875,67314.0,67305.0,0.005]
[1772973241858,0.07427875,67315.0,67305.0,0.005]
[1772973242267,0.07427875,67315.0,67300.0,0.07577412]
[1772973242268,0.07427875,67315.0,67307.0,0.005]
[1772973242651,0.07427102,67321.0,67309.0,0.07428427]
[1772973242856,0.07426586,67326.0,67309.0,0.07428427]
[1772973242857,0.07424594,67344.0,67313.0,0.005]
[1772973243089,0.0742511,67340.0,67317.0,0.00472333]
[1772973243289,0.0742511,67340.0,67313.0,0.00011883]
[1772973243290,0.0742511,67340.0,67320.0,0.01833594]
[1772973243492,0.0742511,67340.0,67323.0,0.00472333]
[1772973243691,0.0742511,67340.0,67323.0,0.01977552]
[1772973243889,0.0742511,67340.0,67324.0,0.00494674]
[1772973244092,0.0742511,67340.0,67326.0,0.00494674]
[1772973244501,0.07446828,67342.0,67329.0,0.01977552]
[1772973244731,0.07446828,67342.0,67330.0,0.00494674]
[1772973245065,0.07446828,67342.0,67329.0,0.00494674]
[1772973245465,0.07446828,67342.0,67329.0,0.00594674]
[1772973245706,0.00022001,67340.0,67329.0,0.00594674]
[1772973245908,0.00022001,67340.0,67329.0,0.00494674]
[1772973246311,0.01856857,67340.0,67325.0,0.00148]
[1772973246481,0.01856857,67340.0,67326.0,0.00494674]
[1772973246680,0.00022001,67340.0,67326.0,0.00494674]
[1772973246881,0.07425117,67339.0,67326.0,0.00494674]
[1772973247078,0.07425117,67339.0,67328.0,0.00494674]
[1772973247487,0.07425117,67339.0,67321.0,0.07427049]
[1772973247488,0.07425117,67339.0,67294.0,0.0002623]
[1772973247797,0.01834856,67331.0,67311.0,0.00144]
[1772973248011,0.00010651,67328.0,67311.0,0.00144]
[1772973248343,0.01982856,67327.0,67309.0,0.00494674]
[1772973248541,0.01993507,67327.0,67313.0,0.00111883]
[1772973248898,0.07426551,67326.0,67313.0,0.00011883]
[1772973249349,0.00010651,67324.0,67313.0,0.00011883]
[1772973249558,0.136407,67325.0,67306.0,0.00168]
[1772973249559,0.01834856,67321.0,67306.0,0.00168]
[1772973249766,0.01846756,67321.0,67307.0,0.00494674]
[1772973249903,0.000119,67321.0,67307.0,0.00494674]
[1772973250307,0.14663123,67321.0,67307.0,0.00494674]
[1772973250752,0.14651223,67320.0,67307.0,0.00494674]
[1772973251253,0.22078546,67319.0,67307.0,0.00494674]
[1772973251477,0.14651223,67318.0,67307.0,0.00494674]
[1772973252029,0.14651223,67318.0,67307.0,0.00148]
[1772973252232,0.14651223,67317.0,67306.0,0.0002]
[1772973252453,0.1649673,67316.0,67303.0,0.00148]
[1772973252657,0.14651223,67315.0,67303.0,0.00148]
[1772973252980,0.14651223,67314.0,67303.0,0.00148]
[1772973253211,0.14651223,67315.0,67302.0,0.00642674]
[1772973253338,0.22079098,67314.0,67302.0,0.00642674]
[1772973253540,0.01845507,67313.0,67299.0,0.0002]
[1772973253792,0.22079098,67314.0,67300.0,0.0002]
[1772973253945,0.14651223,67313.0,67301.0,0.00494674]
[1772973254147,0.10651223,67314.0,67300.0,0.0002]
[1772973254376,0.05427797,67315.0,67301.0,0.00139074]
[1772973254571,0.01972185,67314.0,67301.0,0.00494674]
[1772973254795,0.01972185,67314.0,67302.0,0.00148]
[1772973254970,0.01972185,67314.0,67301.0,0.00494674]
[1772973255330,0.01942585,67312.0,67302.0,0.00148]
[1772973255505,0.01942585,67310.0,67302.0,0.00148]
[1772973255925,0.07428206,67311.0,67302.0,0.00148]
[1772973255926,0.17620186,67325.0,67304.0,0.00287074]
[1772973256079,0.17620186,67325.0,67307.0,0.00494674]
[1772973256080,0.0743911,67321.0,67307.0,0.00494674]
[1772973257173,0.000119,67321.0,67308.0,0.00287074]
[1772973257422,0.07426803,67324.0,67312.0,0.00494674]
[1772973257621,0.07426803,67324.0,67312.0,0.00506574]
[1772973258126,0.0004,67325.0,67314.0,0.00494674]
[1772973258329,0.07466707,67325.0,67314.0,0.00494674]
[1772973259343,0.07425487,67336.0,67315.0,0.07427764]
[1772973259526,0.07425338,67338.0,67316.0,0.00494674]
[1772973260712,0.07425338,67338.0,67316.0,0.00594674]
[1772973260914,0.02,67336.0,67316.0,0.00494674]
[1772973261134,0.025,67336.0,67316.0,0.00494674]
[1772973262303,0.07425558,67335.0,67317.0,0.07427544]
[1772973263730,0.07425558,67337.0,67317.0,0.07427544]
[1772973264349,0.07425227,67338.0,67317.0,0.07427544]
[1772973264530,0.07425227,67338.0,67316.0,0.07427544]
[1772973265325,0.07425194,67339.0,67316.0,0.07427544]
[1772973265757,0.005,67337.0,67315.0,0.07427764]
[1772973265948,0.02,67334.0,67315.0,0.07427764]
[1772973266316,0.07425779,67333.0,67315.0,0.07427764]
[1772973266521,0.09425779,67333.0,67315.0,0.07427764]
[1772973266743,0.02,67331.0,67315.0,0.07427764]
[1772973267221,0.005,67328.0,67316.0,0.00148]
[1772973267422,0.005,67328.0,67315.0,0.07427764]
[1772973267657,0.02,67327.0,67314.0,0.0002]
[1772973267992,0.02,67332.0,67315.0,0.00148]
[1772973268332,0.005,67329.0,67316.0,0.07427654]
[1772973268525,0.02,67326.0,67317.0,0.00148]
[1772973268748,0.07425999,67331.0,67317.0,0.00148]
[1772973270243,0.26457561,67338.0,67317.0,0.00148]
[1772973270244,0.07425546,67336.0,67318.0,0.07427433]
[1772973270670,0.02,67335.0,67318.0,0.07427433]
[1772973270862,0.02,67335.0,67319.0,0.00148]
[1772973271380,0.025,67333.0,67319.0,0.00148]
[1772973271583,0.02,67333.0,67319.0,0.00148]
[1772973273027,0.07425889,67332.0,67320.0,0.07427213]
[1772973273524,0.02,67333.0,67324.0,0.00015]
[1772973273729,0.07425562,67335.0,67325.0,0.00148]
[1772973274609,0.09425562,67335.0,67325.0,0.00148]
[1772973275013,0.09425562,67335.0,67325.0,0.07574582]
[1772973275014,0.02,67335.0,67325.0,0.07574582]
[1772973276458,0.02022001,67335.0,67325.0,0.07574582]
[1772973276814,0.0293151,67335.0,67325.0,0.07574582]
[1772973277028,0.07425669,67334.0,67325.0,0.07574582]
[1772973277355,0.07425669,67334.0,67326.0,0.00148]
[1772973277608,0.07425669,67334.0,67314.0,0.0002]
[1772973277793,0.00894451,67330.0,67316.0,0.00148]
[1772973278015,0.01945853,67327.0,67316.0,0.00148]
[1772973278256,0.01945853,67323.0,67317.0,0.00148]
[1772973278428,0.00894451,67320.0,67317.0,0.00148]
[1772973278603,0.02840304,67318.0,67317.0,0.00148]
[1772973278775,0.07425669,67334.0,67317.0,0.00148]
[1772973278972,0.07425889,67332.0,67317.0,0.07575478]
[1772973279172,0.07425889,67332.0,67317.0,0.07427478]
[1772973279398,0.01945853,67331.0,67318.0,0.00148]
[1772973279825,0.005,67331.0,67318.0,0.00148]
[1772973280029,0.01945853,67330.0,67318.0,0.00148]
[1772973281141,0.0742622,67329.0,67319.0,0.07427323]
[1772973282486,0.01945853,67328.0,67294.0,0.1289423]
[1772973282656,0.0742622,67329.0,67313.0,0.00148]
[1772973282858,0.22278606,67331.0,67313.0,0.00148]
[1772973282859,0.07426661,67325.0,67313.0,0.00148]
[1772973283065,0.07426661,67325.0,67314.0,0.00148]
[1772973283066,0.01945853,67321.0,67314.0,0.00148]
[1772973283270,0.005,67318.0,67310.0,0.00148]
[1772973283471,0.005,67314.0,67309.0,0.00148]
[1772973283783,0.005,67310.0,67308.0,0.00148]
[1772973283986,0.02445853,67309.0,67308.0,0.00148]
[1772973284221,0.02445853,67309.0,67302.0,0.17824]
[1772973284380,0.02445853,67309.0,67308.0,0.00148]
[1772973285129,0.07428537,67308.0,67302.0,0.17824]
[1772973285254,0.0987439,67308.0,67302.0,0.17824]
[1772973285624,0.02445853,67304.0,67303.0,0.00148]
[1772973285989,0.07428537,67308.0,67303.0,0.00148]
[1772973286177,0.0987439,67308.0,67295.0,0.0800488]
[1772973286385,0.07428537,67308.0,67296.0,0.00148]
[1772973286585,0.07427544,67317.0,67297.0,0.015319]
[1772973286807,0.07426982,67323.0,67297.0,0.015319]
[1772973287007,0.07426982,67323.0,67297.0,0.01543802]
[1772973287189,0.07426982,67323.0,67299.0,0.015319]
[1772973288304,0.02445853,67322.0,67299.0,0.015319]
[1772973289563,0.07427102,67321.0,67300.0,0.0742942]
[1772973289755,0.01945853,67320.0,67300.0,0.0742942]
[1772973289912,0.01945853,67320.0,67300.0,0.0896132]
[1772973290107,0.01945853,67320.0,67300.0,0.0742942]
[1772973290313,0.02445853,67317.0,67300.0,0.0742942]
[1772973291754,0.0987346,67317.0,67300.0,0.0742942]
[1772973291959,0.07427607,67317.0,67299.0,0.0744942]
[1772973292155,0.005,67313.0,67301.0,0.00148]
[1772973292359,0.01945853,67316.0,67301.0,0.00148]
[1772973292561,0.005,67316.0,67301.0,0.00148]
[1772973292726,0.01945853,67315.0,67301.0,0.00148]
[1772973293140,0.005,67315.0,67308.0,0.00015]
[1772973293321,0.01945853,67314.0,67309.0,0.00148]
[1772973293524,0.01945853,67312.0,67309.0,0.00148]
[1772973293723,0.07428206,67311.0,67309.0,0.00148]
[1772973294129,0.07428206,67311.0,67299.0,0.07449457]
[1772973294332,0.02445853,67310.0,67304.0,0.00148]
[1772973294747,0.005,67310.0,67305.0,0.00148]
[1772973295074,0.07428206,67311.0,67305.0,0.00148]
[1772973295277,0.88275214,67428.0,67305.0,0.00148]
[1772973295278,0.11761596,67328.0,67305.0,0.00148]
[1772973295418,0.00148,67330.0,67305.0,0.00148]
[1772973295419,0.07426992,67324.0,67305.0,0.00148]
[1772973295621,0.005,67321.0,67305.0,0.00148]
[1772973295824,0.005,67321.0,67306.0,0.07428758]
[1772973295825,0.07927323,67319.0,67306.0,0.07428758]
[1772973296027,0.07427102,67321.0,67306.0,0.07428758]
[1772973297488,0.005,67317.0,67306.0,0.07428758]
[1772973297710,0.07427102,67321.0,67301.0,0.00148]
[1772973297711,0.005,67313.0,67301.0,0.00148]
[1772973297880,0.01945853,67309.0,67302.0,0.00148]
[1772973298064,0.01945853,67309.0,67303.0,0.00148]
[1772973298065,0.02445853,67309.0,67303.0,0.00148]
[1772973298481,0.07428206,67311.0,67304.0,0.00148]
[1772973298686,0.01945853,67308.0,67299.0,0.074495]
[1772973298867,0.07428206,67311.0,67299.0,0.074495]
[1772973299063,0.005,67309.0,67300.0,0.00148]
[1772973299285,0.01945853,67308.0,67300.0,0.00148]
[1772973299484,0.005,67310.0,67301.0,0.00148]
[1772973300410,0.07428206,67311.0,67302.0,0.07429199]
[1772973300679,0.07428178,67313.0,67302.0,0.07429199]
[1772973300789,0.07427803,67315.0,67302.0,0.07429199]
[1772973301449,0.07427803,67315.0,67299.0,0.0002]
[1772973301450,0.005,67313.0,67303.0,0.00148]
[1772973301641,0.01945853,67310.0,67303.0,0.00148]
[1772973301953,0.02445853,67310.0,67303.0,0.00148]
[1772973302305,0.02445853,67310.0,67303.0,0.00131138]
[1772973302504,0.22139382,67317.0,67305.0,0.00495337]
[1772973302816,0.07427303,67320.0,67305.0,0.00495337]
[1772973302817,0.22139033,67319.0,67305.0,0.00495337]
[1772973303037,0.00458388,67317.0,67303.0,0.07560182]